bitfinex/quotes_BTCUSD_20250101
["timestamp","ask_amount","ask_price","bid_price","bid_amount"]
[1735751584791,0.44240984,94091.0,94090.0,0.05441296]
[1735751584988,0.26595084,94091.0,94090.0,0.05441296]
[1735751586373,0.41169184,94091.0,94090.0,0.05441296]
[1735751586572,0.40969184,94091.0,94090.0,0.05441296]
[1735751587173,0.36469184,94091.0,94090.0,0.05441296]
[1735751587379,0.36469184,94091.0,94090.0,0.05541296]
[1735751587582,0.21695084,94091.0,94090.0,0.05541296]
[1735751588367,0.21695084,94091.0,94090.0,0.05558356]
[1735751589040,0.00438984,94091.0,94090.0,0.05558356]
[1735751589180,0.00058378,94093.0,94092.0,0.05441296]
[1735751590473,0.212557,94092.0,94091.0,0.05441296]
[1735751591828,0.00058378,94093.0,94091.0,0.05441296]
[1735751592661,0.00158378,94093.0,94091.0,0.05441296]
[1735751592863,0.00058378,94093.0,94091.0,0.05441296]
[1735751593278,0.00058378,94093.0,94091.0,0.05941296]
[1735751593489,0.00058378,94093.0,94091.0,0.05641296]
[1735751593655,0.00058378,94093.0,94091.0,0.05441296]
[1735751593859,0.00058378,94093.0,94091.0,0.05841296]
[1735751594168,0.00058378,94093.0,94091.0,0.06041296]
[1735751595910,0.212557,94092.0,94091.0,0.06041296]
[1735751596680,0.212557,94092.0,94091.0,0.05841296]
[1735751596885,0.212557,94092.0,94091.0,0.004]
[1735751596886,0.49418025,94092.0,94091.0,0.004]
[1735751597131,0.2264,94091.0,94090.0,6e-07]
[1735751597283,1.590185,94091.0,94090.0,6e-07]
[1735751597512,0.26151831,94091.0,94090.0,6e-07]
[1735751597922,0.36550463,94091.0,94090.0,6e-07]
[1735751599633,0.37250463,94091.0,94090.0,6e-07]
[1735751600051,0.70137502,94091.0,94090.0,6e-07]
[1735751600651,0.70437502,94091.0,94090.0,6e-07]
[1735751601380,0.38350463,94091.0,94090.0,6e-07]
[1735751603288,0.70485737,94091.0,94090.0,6e-07]
[1735751605525,0.43413257,94091.0,94090.0,6e-07]
[1735751606505,0.11277983,94091.0,94090.0,6e-07]
[1735751607507,0.39844736,94091.0,94090.0,6e-07]
[1735751608269,0.54844736,94091.0,94090.0,6e-07]
[1735751608425,0.26277983,94091.0,94090.0,6e-07]
[1735751608633,0.34217983,94091.0,94090.0,6e-07]
[1735751609006,0.39017983,94091.0,94090.0,6e-07]
[1735751610342,0.67577578,94091.0,94090.0,6e-07]
[1735751612580,0.86201907,94091.0,94090.0,6e-07]
[1735751614244,0.57642312,94091.0,94090.0,6e-07]
[1735751614451,0.57342312,94091.0,94090.0,6e-07]
[1735751614658,0.57842312,94091.0,94090.0,6e-07]
[1735751614863,0.56342312,94091.0,94090.0,6e-07]
[1735751615270,0.57242312,94091.0,94090.0,6e-07]
[1735751617639,0.54942312,94091.0,94090.0,6e-07]
[1735751624212,0.54959372,94091.0,94090.0,6e-07]
[1735751624351,0.60481697,94091.0,94090.0,6e-07]
[1735751624567,0.54959372,94091.0,94090.0,6e-07]
[1735751627983,0.57259372,94091.0,94090.0,6e-07]
[1735751638831,0.19558704,94085.0,94075.0,0.0177206]
[1735751639054,0.212594,94076.0,94075.0,6e-07]
[1735751639224,0.31658032,94076.0,94075.0,6e-07]
[1735751640916,0.31858032,94076.0,94075.0,6e-07]
[1735751641475,0.82458032,94076.0,94075.0,6e-07]
[1735751644156,0.51907647,94076.0,94075.0,6e-07]
[1735751644359,0.51707647,94076.0,94075.0,6e-07]
[1735751644467,0.51307647,94076.0,94075.0,6e-07]
[1735751644670,0.73267047,94076.0,94075.0,6e-07]
[1735751645728,0.2272,94075.0,94062.0,8.53e-05]
[1735751645931,0.2272,94075.0,94052.0,0.05441296]
[1735751645932,0.15,94056.0,94040.0,0.05441296]
[1735751646141,0.212666,94044.0,94040.0,0.05441296]
[1735751647206,0.212666,94044.0,94043.0,0.00022223]
[1735751648037,0.212666,94044.0,94043.0,0.05463519]
[1735751648243,0.712666,94044.0,94043.0,0.05463519]
[1735751648650,0.712666,94044.0,94043.0,0.13613519]
[1735751648651,0.71259298,94044.0,94043.0,0.13613519]
[1735751648855,0.71259298,94044.0,94043.0,0.18243519]
[1735751651526,0.76781623,94044.0,94043.0,0.18243519]
[1735751651681,0.71259298,94044.0,94043.0,0.18234174]
[1735751656852,0.71259298,94044.0,94043.0,0.12792878]
[1735751657105,0.72908968,94044.0,94043.0,0.18234174]
[1735751660235,0.72926028,94044.0,94043.0,0.18234174]
[1735751664213,0.22926028,94044.0,94043.0,0.18234174]
[1735751665960,0.38013637,94044.0,94043.0,0.18234174]
[1735751670352,0.23013637,94044.0,94043.0,0.18234174]
[1735751670574,0.21276358,94044.0,94043.0,0.18234174]
[1735751671952,0.21276358,94044.0,94043.0,0.05454174]
[1735751672161,0.23198076,94044.0,94043.0,0.05454174]
[1735751673467,0.21276358,94044.0,94043.0,0.05454174]
[1735751674048,0.36276358,94044.0,94043.0,0.05454174]
[1735751674260,0.38198076,94044.0,94043.0,0.05454174]
[1735751676528,0.46238076,94044.0,94043.0,0.00012878]
[1735751676740,0.46238076,94044.0,94043.0,0.05454174]
[1735751676944,0.38198076,94044.0,94043.0,0.05454174]
[1735751677971,0.38398076,94044.0,94043.0,0.05454174]
[1735751678359,0.38198076,94044.0,94043.0,0.05454174]
[1735751678572,0.38398076,94044.0,94043.0,0.05454174]
[1735751680426,0.46088076,94044.0,94043.0,0.05454174]
[1735751680597,0.38398076,94044.0,94043.0,0.05454174]
[1735751681844,0.38398076,94044.0,94043.0,0.00012878]
[1735751683472,0.38198076,94044.0,94043.0,0.00012878]
[1735751683805,0.38398076,94044.0,94043.0,0.00012878]
[1735751684440,1.47021876,94044.0,94043.0,0.00012878]
[1735751684653,2.13677676,94044.0,94043.0,0.00012878]
[1735751685057,1.84891176,94044.0,94043.0,0.00012878]
[1735751685259,1.89431176,94044.0,94043.0,0.00012878]
[1735751685459,1.84891176,94044.0,94043.0,0.00012878]
[1735751686032,1.28128476,94044.0,94043.0,0.00012878]
[1735751686232,1.27928476,94044.0,94043.0,0.00012878]
[1735751686462,1.08858276,94044.0,94043.0,0.00012878]
[1735751686864,1.08358276,94044.0,94043.0,0.00012878]
[1735751687073,1.08858276,94044.0,94043.0,0.00012878]
[1735751687227,0.58767576,94044.0,94043.0,0.00012878]
[1735751687452,0.58867576,94044.0,94043.0,0.00012878]
[1735751687873,0.58767576,94044.0,94043.0,0.00012878]
[1735751688091,0.38698076,94044.0,94043.0,0.00012878]
[1735751688302,0.46488076,94044.0,94043.0,0.00012878]
[1735751688526,0.50304376,94044.0,94043.0,0.00012878]
[1735751688931,0.38798076,94044.0,94043.0,0.00012878]
[1735751691737,0.46488076,94044.0,94043.0,0.00012878]
[1735751692148,0.38798076,94044.0,94043.0,0.00012878]
[1735751693505,1.13321478,94044.0,94043.0,0.00012878]
[1735751693993,0.71006178,94044.0,94043.0,0.00012878]
[1735751694213,0.38798076,94044.0,94043.0,0.00012878]
[1735751694827,0.50733976,94044.0,94043.0,0.05454174]
[1735751696097,0.38798076,94044.0,94043.0,0.05454174]
[1735751696309,0.64290776,94044.0,94043.0,0.00012878]
[1735751697299,0.56130776,94044.0,94043.0,0.00012878]
[1735751697955,0.38798076,94044.0,94043.0,0.00012878]
[1735751698170,0.49085976,94044.0,94043.0,0.00012878]
[1735751698778,0.38798076,94044.0,94043.0,0.00012878]
[1735751699196,0.38798076,94044.0,94043.0,0.05454174]
[1735751702158,0.21876358,94044.0,94043.0,0.05454174]
[1735751702411,0.21876358,94044.0,94043.0,0.13304174]
[1735751703075,0.21876358,94044.0,94043.0,0.05454174]
[1735751703281,0.21776358,94044.0,94043.0,0.05454174]
[1735751703459,0.21276358,94044.0,94043.0,0.05454174]
[1735751703913,0.21376358,94044.0,94043.0,0.05454174]
[1735751704113,0.21376358,94044.0,94043.0,0.06175767]
[1735751705276,0.21376358,94044.0,94043.0,0.05454174]
[1735751706130,0.5000078,94044.0,94043.0,0.05454174]
[1735751706703,0.5000078,94044.0,94043.0,0.13304174]
[1735751706906,0.21376358,94044.0,94043.0,0.13304174]
[1735751707103,0.21376358,94044.0,94043.0,0.14025767]
[1735751707559,0.21376358,94044.0,94043.0,0.06175767]
[1735751709648,0.0011706,94044.0,94043.0,0.21524399]
[1735751710713,0.0011706,94044.0,94043.0,0.32106315]
[1735751711346,0.0011706,94044.0,94043.0,0.29164399]
[1735751718790,0.0011706,94044.0,94043.0,0.39164399]
[1735751718989,0.0011706,94044.0,94043.0,0.41464399]
[1735751719595,0.0001706,94044.0,94043.0,0.41464399]
[1735751719822,0.0011706,94044.0,94043.0,0.41464399]
[1735751720399,0.0021706,94044.0,94043.0,0.41464399]
[1735751721023,0.0021706,94044.0,94043.0,0.46615315]
[1735751722876,0.0021706,94044.0,94043.0,0.41464399]
[1735751727117,0.0021706,94044.0,94043.0,0.51464399]
[1735751727452,0.05478487,94058.0,94057.0,0.05441296]
[1735751727659,0.05478487,94058.0,94057.0,0.16559429]
[1735751728205,0.05478487,94059.0,94057.0,0.20497372]
[1735751728404,0.05478487,94059.0,94058.0,0.15839928]
[1735751729047,0.05478487,94059.0,94058.0,0.16559429]
[1735751729255,0.21263,94060.0,94058.0,0.16559429]
[1735751729671,0.001,94059.0,94058.0,0.16859429]
[1735751729826,0.001,94059.0,94058.0,0.21242897]
[1735751730037,0.001,94059.0,94058.0,0.17159429]
[1735751730236,0.001,94059.0,94058.0,0.16859429]
[1735751730439,0.21263,94060.0,94058.0,0.16559429]
[1735751730672,0.21363,94060.0,94058.0,0.16859429]
[1735751731567,0.2138006,94060.0,94058.0,0.16859429]
[1735751731775,0.2138006,94060.0,94058.0,0.17159429]
[1735751731969,0.2128006,94060.0,94058.0,0.16859429]
[1735751732177,0.001,94059.0,94058.0,0.17159429]
[1735751732580,0.2128006,94060.0,94058.0,0.16959429]
[1735751732905,0.2138006,94060.0,94058.0,0.17659429]
[1735751733218,0.2138006,94060.0,94058.0,0.16559429]
[1735751733219,0.2128006,94060.0,94058.0,0.16559429]
[1735751733551,0.001,94059.0,94058.0,0.17659429]
[1735751733940,0.2128006,94060.0,94058.0,0.16959429]
[1735751734790,0.2128006,94060.0,94058.0,0.16559429]
[1735751735167,0.2128006,94060.0,94058.0,0.16859429]
[1735751735305,0.2138006,94060.0,94058.0,0.17559429]
[1735751736460,0.2138006,94060.0,94059.0,0.05441296]
[1735751736669,0.2138006,94060.0,94059.0,0.15839928]
[1735751736903,0.2138006,94060.0,94059.0,0.16487049]
[1735751737534,0.0011706,94060.0,94059.0,0.16487049]
[1735751737942,0.0011706,94060.0,94059.0,0.19517754]
[1735751738364,0.14319174,94060.0,94059.0,0.19817754]
[1735751738748,0.14419174,94060.0,94059.0,0.20517754]
[1735751739266,0.0011706,94060.0,94059.0,0.20517754]
[1735751739470,0.0010797,94060.0,94059.0,0.17487049]
[1735751743414,0.0010797,94060.0,94059.0,0.16839928]
[1735751744026,0.14410084,94060.0,94059.0,0.16839928]
[1735751744446,0.14410084,94060.0,94059.0,0.17486926]
[1735751745061,0.0010797,94060.0,94059.0,0.17486926]
[1735751748648,0.00054937,94060.0,94059.0,0.17486926]
[1735751749577,0.00054937,94060.0,94059.0,0.20518472]
[1735751749778,0.00054937,94060.0,94059.0,0.17486926]
[1735751751295,0.19124423,94060.0,94059.0,0.17486926]
[1735751752481,0.14376304,94060.0,94059.0,0.17486926]
[1735751753203,0.00054937,94060.0,94059.0,0.17486926]
[1735751756296,0.19124423,94060.0,94059.0,0.17486926]
[1735751756514,0.19124423,94060.0,94059.0,0.21518472]
[1735751757220,0.19124423,94060.0,94059.0,0.21535532]
[1735751757644,0.19132953,94060.0,94059.0,0.21535532]
[1735751758258,0.00063467,94060.0,94059.0,0.21535532]
[1735751760404,0.23916137,94060.0,94059.0,0.21535532]
[1735751761617,0.00063467,94060.0,94059.0,0.21535532]
[1735751762428,0.00063467,94060.0,94059.0,0.23835532]
[1735751762625,0.19189261,94060.0,94059.0,0.51745532]
[1735751763406,0.19189261,94060.0,94059.0,0.51445532]
[1735751763610,0.00063467,94060.0,94059.0,0.51445532]
[1735751763853,0.00163467,94060.0,94059.0,0.52045532]
[1735751764255,0.00063467,94060.0,94059.0,0.51445532]
[1735751764660,0.0010853,94060.0,94059.0,0.51345532]
[1735751764980,0.19125794,94074.0,94072.0,0.05441296]
[1735751765279,0.19125794,94074.0,94073.0,0.11942762]
[1735751765696,0.212597,94075.0,94073.0,0.12588301]
[1735751766310,0.21309548,94075.0,94073.0,0.12588301]
[1735751766514,0.21309548,94075.0,94073.0,0.11942762]
[1735751766838,0.21309548,94075.0,94074.0,0.00645539]
[1735751767106,0.21309548,94075.0,94074.0,0.16485467]
[1735751767301,0.23275862,94075.0,94074.0,0.16485467]
[1735751767501,0.23275862,94075.0,94074.0,0.15839928]
[1735751767706,0.23275862,94075.0,94074.0,0.16485467]
[1735751768059,0.23275862,94075.0,94074.0,0.16885467]
[1735751768425,0.23375862,94075.0,94074.0,0.17685467]
[1735751768626,0.23275862,94075.0,94074.0,0.16885467]
[1735751769068,0.30895862,94075.0,94074.0,0.17485467]
[1735751769279,0.30904392,94075.0,94074.0,0.17485467]
[1735751769680,0.30904392,94075.0,94074.0,0.19234014]
[1735751769891,0.23284392,94075.0,94074.0,0.17085467]
[1735751770111,0.23284392,94075.0,94074.0,0.17385467]
[1735751772358,0.21318078,94075.0,94074.0,0.17385467]
[1735751775945,0.21318078,94075.0,94074.0,0.16739928]
[1735751778792,0.21318078,94075.0,94074.0,0.17384547]
[1735751779294,0.21318078,94075.0,94074.0,0.19123002]
[1735751779710,0.21318078,94075.0,94074.0,0.17384547]
[1735751784734,0.45974407,94075.0,94072.0,0.04876975]
[1735751784946,0.45974407,94075.0,94059.0,0.0001706]
[1735751784947,0.0791,94072.0,94059.0,0.0001706]
[1735751785159,0.212627,94061.0,94059.0,0.0001706]
[1735751785594,0.01966329,94060.0,94059.0,0.0001706]
[1735751786274,0.29556329,94060.0,94059.0,6e-07]
[1735751786691,0.29556329,94060.0,94059.0,0.0030006]
[1735751787097,0.29556329,94060.0,94059.0,6e-07]
[1735751787502,0.29556329,94060.0,94043.0,7.715e-05]
[1735751787503,0.575264,94059.0,94043.0,7.715e-05]
[1735751787921,0.15,94056.0,94043.0,7.715e-05]
[1735751788145,0.01966329,94058.0,94043.0,7.715e-05]
[1735751788357,0.212637,94057.0,94043.0,7.715e-05]
[1735751788575,0.212637,94057.0,94055.0,0.10407162]
[1735751788752,0.212637,94057.0,94056.0,0.10398632]
[1735751789416,0.212637,94057.0,94055.0,8.53e-05]
[1735751789623,0.0816,94056.0,94055.0,8.53e-05]
[1735751790279,0.1291,94056.0,94055.0,3e-07]
[1735751790503,0.1487633,94056.0,94055.0,3e-07]
[1735751791555,0.3007633,94056.0,94055.0,3e-07]
[1735751792447,0.2987633,94056.0,94055.0,3e-07]
[1735751792658,0.3047633,94056.0,94055.0,3e-07]
[1735751793362,0.3067633,94056.0,94055.0,3e-07]
[1735751793953,0.212666,94044.0,94043.0,7.715e-05]
[1735751794159,0.330286,94044.0,94043.0,7.715e-05]
[1735751794489,0.212666,94044.0,94043.0,7.715e-05]
[1735751795243,0.212666,94044.0,94043.0,0.00012878]
[1735751795450,0.213666,94044.0,94043.0,0.00012878]
[1735751796274,0.21308955,94044.0,94043.0,0.00012878]
[1735751797069,0.21208955,94044.0,94043.0,0.00012878]
[1735751797883,0.21208955,94044.0,94043.0,0.00112878]
[1735751798822,0.21208955,94044.0,94043.0,0.00012878]
[1735751799244,0.21208955,94044.0,94043.0,0.1051151]
[1735751799869,0.21208955,94044.0,94043.0,0.11031507]
[1735751800685,0.21208955,94044.0,94043.0,0.10931507]
[1735751800900,0.21208955,94044.0,94043.0,0.11331507]
[1735751801329,0.21308955,94044.0,94043.0,0.10931507]
[1735751801697,0.21308955,94044.0,94043.0,0.11331507]
[1735751802524,0.21308955,94044.0,94043.0,0.10931507]
[1735751803948,0.21208955,94044.0,94043.0,0.11331507]
[1735751804157,0.21308955,94044.0,94043.0,0.11331507]
[1735751804590,0.001,94044.0,94043.0,0.11331507]
[1735751811475,0.2128106,94056.0,94043.0,0.11331507]
[1735751811476,0.0001706,94056.0,94043.0,0.11331507]
[1735751811764,0.0001706,94056.0,94044.0,0.12536259]
[1735751812115,0.0001706,94056.0,94045.0,0.00519018]
[1735751812323,0.0001706,94056.0,94046.0,0.10398632]
[1735751812730,0.212659,94047.0,94046.0,0.10398632]
[1735751814195,0.212659,94047.0,94046.0,0.10698632]
[1735751814711,0.213659,94047.0,94046.0,0.10698632]
[1735751815117,0.213659,94047.0,94046.0,0.18998632]
[1735751815593,0.001,94047.0,94046.0,0.47518196]
[1735751816265,0.001,94047.0,94046.0,0.47218196]
[1735751816674,0.002,94047.0,94046.0,0.47818196]
[1735751817083,0.001,94047.0,94046.0,0.47818196]
[1735751817487,0.002,94047.0,94046.0,0.47818196]
[1735751819140,0.002,94047.0,94046.0,0.46398632]
[1735751821626,0.002,94047.0,94046.0,0.46916126]
[1735751823256,0.002,94047.0,94046.0,0.36916126]
[1735751823460,0.002,94047.0,94046.0,0.46916126]
[1735751824055,0.002,94047.0,94046.0,0.36916126]
[1735751824260,0.002,94047.0,94046.0,0.23816126]
[1735751824952,0.002,94047.0,94046.0,0.33816126]
[1735751825165,0.002,94047.0,94046.0,0.37203502]
[1735751827055,0.002,94047.0,94046.0,0.42116126]
[1735751829271,0.002,94047.0,94046.0,0.42124656]
[1735751835123,0.002,94047.0,94046.0,0.32124656]
[1735751835307,0.002,94047.0,94046.0,0.42124656]
[1735751835946,0.002,94047.0,94046.0,0.21524656]
[1735751836224,0.002,94047.0,94046.0,0.11524656]
[1735751838260,0.002,94047.0,94046.0,0.24682885]
[1735751840585,0.002,94047.0,94046.0,0.36982885]
[1735751845156,0.00194595,94047.0,94046.0,0.36982885]
[1735751849899,0.00194595,94047.0,94046.0,0.33824656]
[1735751850889,0.00194595,94047.0,94046.0,0.23824656]
[1735751851069,0.00194595,94047.0,94046.0,0.33824656]
[1735751853676,0.00168848,94047.0,94046.0,0.33824656]
[1735751855829,0.00168848,94047.0,94046.0,0.41514656]
[1735751856033,0.00168848,94047.0,94046.0,0.51913288]
[1735751856242,0.00168848,94047.0,94046.0,0.46703288]
[1735751856454,0.00168848,94047.0,94046.0,0.23824656]
[1735751857464,0.00168848,94047.0,94046.0,0.33824656]
[1735751858139,0.00168848,94047.0,94046.0,0.23824656]
[1735751859397,0.00168848,94047.0,94046.0,0.33824656]
[1735751859569,0.00168848,94047.0,94046.0,0.37212885]
[1735751861658,0.00168848,94047.0,94046.0,0.27212885]
[1735751861904,0.00168848,94047.0,94046.0,0.49442885]
[1735751862788,0.00068848,94047.0,94046.0,0.49442885]
[1735751863200,0.00168848,94047.0,94046.0,0.50042885]
[1735751863400,0.0001706,94051.0,94050.0,0.1]
[1735751863602,0.0001706,94051.0,94050.0,0.22698632]
[1735751863719,0.0001706,94051.0,94050.0,0.23214743]
[1735751864562,0.0001706,94051.0,94050.0,0.28860181]
[1735751864762,0.0011706,94051.0,94050.0,0.23914743]
[1735751865742,0.0011706,94051.0,94050.0,0.24814743]
[1735751882379,0.0011706,94051.0,94050.0,0.12514743]
[1735751882796,0.0001706,94051.0,94050.0,0.11814743]
[1735751883027,0.0001706,94051.0,94050.0,0.10398632]
[1735751883244,0.0001706,94051.0,94050.0,0.10898632]
[1735751883459,0.0011706,94051.0,94050.0,0.11798632]
[1735751883640,0.0001706,94051.0,94050.0,0.10898632]
[1735751883881,0.0001706,94051.0,94050.0,0.11798632]
[1735751884091,0.0011706,94051.0,94050.0,0.11798632]
[1735751884317,0.12487177,94051.0,94050.0,0.014]
[1735751884527,0.28925813,94051.0,94047.0,8.53e-05]
[1735751884763,0.0751,94048.0,94047.0,3e-07]
[1735751884964,0.485657,94048.0,94047.0,3e-07]
[1735751885181,0.15,94047.0,94046.0,6e-07]
[1735751885361,0.0751,94045.0,94042.0,1.8e-07]
[1735751885623,0.2251,94043.0,94042.0,6.859e-05]
[1735751885825,0.2251,94043.0,94042.0,5.9e-07]
[1735751886039,0.24388479,94043.0,94042.0,5.9e-07]
[1735751886461,0.29178479,94043.0,94042.0,5.9e-07]
[1735751887610,0.29578479,94043.0,94042.0,5.9e-07]
[1735751887863,0.29178479,94043.0,94042.0,5.9e-07]
[1735751888074,0.29378479,94043.0,94042.0,5.9e-07]
[1735751888518,0.57784684,94043.0,94042.0,5.9e-07]
[1735751888736,0.58184684,94043.0,94042.0,5.9e-07]
[1735751888946,0.68583316,94043.0,94042.0,5.9e-07]
[1735751889149,0.69283316,94043.0,94042.0,5.9e-07]
[1735751889536,0.40677111,94043.0,94042.0,5.9e-07]
[1735751889988,0.15,94035.0,94003.0,8.53e-05]
[1735751890207,2.4630894,94034.0,94033.0,0.00021979]
[1735751890416,1.99737919,94034.0,94033.0,0.00021979]
[1735751890592,1.91397619,94034.0,94033.0,0.00021979]
[1735751890818,1.33129219,94034.0,94033.0,0.00021979]
[1735751891023,1.54398119,94034.0,94033.0,7.9e-07]
[1735751891234,0.15,94033.0,94031.0,7.9e-07]
[1735751891437,0.15,94033.0,94018.0,3e-07]
[1735751891438,0.15,94027.0,94018.0,3e-07]
[1735751891781,0.493322,94019.0,94018.0,5.006e-05]
[1735751891986,1.507246,94019.0,94018.0,5.006e-05]
[1735751892191,1.50539013,94019.0,94018.0,5.006e-05]
[1735751892433,1.50539013,94019.0,94018.0,6e-08]
[1735751892640,0.55324653,94019.0,94018.0,6e-08]
[1735751893015,0.56424653,94019.0,94018.0,6e-08]
[1735751894204,0.66823285,94019.0,94018.0,6e-08]
[1735751896402,0.9055535,94019.0,94018.0,6e-08]
[1735751897411,0.81055363,94019.0,94018.0,6e-08]
[1735751898362,0.66823285,94019.0,94018.0,6e-08]
[1735751902608,0.66823285,94019.0,94018.0,3.6e-07]
[1735751902842,0.66840345,94019.0,94018.0,3.6e-07]
[1735751903432,0.62734505,94019.0,94018.0,3.6e-07]
[1735751909785,0.32524737,94019.0,94018.0,3.6e-07]
[1735751910399,0.47734505,94019.0,94018.0,3.6e-07]
[1735751912050,0.62734505,94019.0,94018.0,3.6e-07]
[1735751912250,0.62734505,94019.0,93979.0,0.0180058]
[1735751912251,0.212811,93980.0,93979.0,0.0180058]
[1735751912468,0.212811,93980.0,93979.0,0.00480187]
[1735751912768,0.31172736,93980.0,93979.0,0.00480187]
[1735751912910,0.31172736,93980.0,93924.0,0.0477]
[1735751912911,0.08,93968.0,93924.0,0.0477]
[1735751913110,0.08,93968.0,93965.0,9.7e-07]
[1735751913111,0.008,93967.0,93965.0,9.7e-07]
[1735751913260,0.212842,93966.0,93965.0,9.7e-07]
[1735751913682,0.23175836,93966.0,93965.0,9.7e-07]
[1735751913897,0.425684,93966.0,93965.0,9.7e-07]
[1735751914249,0.15,93979.0,93940.0,0.1]
[1735751914454,0.15,93979.0,93932.0,0.0477]
[1735751914455,0.212873,93953.0,93942.0,0.00049401]
[1735751914657,0.212864,93957.0,93943.0,0.10398632]
[1735751914868,0.212875,93952.0,93943.0,0.10398632]
[1735751915328,0.212876,93952.0,93944.0,0.0768]
[1735751915554,0.214841,93967.0,93945.0,0.13211435]
[1735751915743,0.212859,93959.0,93945.0,0.10398632]
[1735751915950,0.212795,93987.0,93954.0,0.023]
[1735751916149,0.212835,93970.0,93955.0,0.10398632]
[1735751916778,0.212846,93965.0,93955.0,0.10398632]
[1735751917521,0.212847,93964.0,93955.0,0.10398632]
[1735751917927,0.089,93984.0,93955.0,0.10398632]
[1735751918128,0.089,93984.0,93956.0,0.023]
[1735751918129,0.21283,93972.0,93956.0,0.023]
[1735751918328,0.212847,93965.0,93957.0,0.10398632]
[1735751918571,0.009,93984.0,93959.0,0.0477]
[1735751918773,0.009,93984.0,93960.0,0.10398632]
[1735751918950,0.08,94002.0,93961.0,0.123]
[1735751919167,0.212813,93980.0,93963.0,0.023]
[1735751919375,0.001,93970.0,93964.0,0.10398632]
[1735751919571,0.712813,93980.0,93964.0,0.10398632]
[1735751919779,0.712813,93980.0,93965.0,0.00430073]
[1735751919980,0.712813,93980.0,93966.0,0.10398632]
[1735751920278,0.212815,93978.0,93966.0,0.10398632]
[1735751920475,0.001,93970.0,93967.0,0.00430073]
[1735751920679,0.001,93970.0,93968.0,0.10398632]
[1735751920895,0.212826,93974.0,93968.0,0.10398632]
[1735751921132,0.212828,93973.0,93968.0,0.10398632]
[1735751921352,0.212815,93978.0,93968.0,0.10398632]
[1735751921968,0.01893446,93987.0,93968.0,0.10398632]
[1735751922165,0.212829,93972.0,93968.0,0.10398632]
[1735751922800,0.5,93981.0,93937.0,0.0484]
[1735751922801,0.212838,93968.0,93937.0,0.0484]
[1735751923012,0.212892,93944.0,93943.0,0.10398632]
[1735751923215,0.212892,93944.0,93926.0,0.1298]
[1735751923426,0.0170512,93943.0,93926.0,0.1298]
[1735751923626,0.212892,93944.0,93926.0,0.1298]
[1735751924253,0.01893446,93943.0,93926.0,0.1298]
[1735751925498,0.01893446,93943.0,93942.0,0.00249401]
[1735751928813,0.212892,93944.0,93942.0,0.00249401]
[1735751929241,0.01893722,93943.0,93942.0,0.00249401]
[1735751930313,0.01893722,93943.0,93942.0,0.00049401]
[1735751930745,0.01893722,93943.0,93942.0,0.00149401]
[1735751931149,0.01893722,93943.0,93942.0,0.00049401]
[1735751931549,0.01893722,93943.0,93942.0,0.00249401]
[1735751936110,0.6812605,93943.0,93942.0,1e-08]
[1735751936285,0.35227682,93943.0,93942.0,1e-08]
[1735751936731,0.15,93942.0,93926.0,4.081e-05]
[1735751936924,0.212931,93927.0,93926.0,0.00019065]
[1735751937759,0.23172321,93927.0,93926.0,0.00019065]
[1735751938018,0.212931,93927.0,93926.0,0.00119065]
[1735751938426,0.23172321,93927.0,93926.0,0.00019065]
[1735751939067,0.23672321,93927.0,93926.0,0.00019065]
[1735751939889,0.23872321,93927.0,93926.0,0.00019065]
[1735751940275,0.219931,93927.0,93926.0,0.00019065]
[1735751942175,0.214931,93927.0,93926.0,0.00019065]
[1735751942520,0.215931,93927.0,93926.0,0.00019065]
[1735751942719,0.213931,93927.0,93926.0,0.00019065]
[1735751942918,0.212931,93927.0,93926.0,0.00019065]
[1735751943151,0.215931,93927.0,93926.0,0.00019065]
[1735751943548,0.213931,93927.0,93926.0,0.00019065]
[1735751945607,0.212931,93927.0,93926.0,0.00019065]
[1735751945816,0.2129,93941.0,93927.0,0.1257]
[1735751946033,0.2129,93941.0,93928.0,0.10398632]
[1735751946235,0.0795,93959.0,93928.0,0.10398632]
[1735751946236,0.212891,93945.0,93929.0,0.023]
[1735751946452,0.212841,93967.0,93929.0,0.023]
[1735751946453,0.212854,93961.0,93936.0,0.10398632]
[1735751946658,0.14232078,93968.0,93939.0,0.023]
[1735751946863,0.35515978,93968.0,93943.0,0.023]
[1735751947039,0.212839,93968.0,93945.0,0.023]
[1735751947260,0.212839,93968.0,93944.0,0.10398632]
[1735751947261,0.212839,93968.0,93947.0,0.023]
[1735751947451,0.212839,93968.0,93949.0,0.023]
[1735751947657,0.212852,93962.0,93951.0,0.023]
[1735751947871,0.212852,93962.0,93952.0,0.10398632]
[1735751948097,0.212852,93962.0,93952.0,0.10755346]
[1735751948506,0.212864,93957.0,93952.0,0.10755346]
[1735751948722,0.20892567,93957.0,93952.0,0.10755346]
[1735751948929,0.212852,93962.0,93952.0,0.10755346]
[1735751949760,0.212849,93963.0,93952.0,0.10755346]
[1735751949761,0.212868,93955.0,93952.0,0.10755346]
[1735751949966,0.212868,93955.0,93952.0,0.10955346]
[1735751950172,0.212868,93955.0,93952.0,0.10598632]
[1735751950377,0.425736,93955.0,93953.0,0.00356714]
[1735751950741,0.212888,93947.0,93930.0,0.1]
[1735751950956,0.212888,93947.0,93941.0,0.10755346]
[1735751952326,0.213888,93947.0,93941.0,0.10755346]
[1735751952502,0.212888,93947.0,93941.0,0.10755346]
[1735751952705,0.213888,93947.0,93941.0,0.10755346]
[1735751952946,0.213888,93947.0,93941.0,0.10955346]
[1735751953357,0.001,93947.0,93941.0,0.10955346]
[1735751953533,0.001,93947.0,93941.0,0.10755346]
[1735751953741,0.001,93947.0,93941.0,0.10955346]
[1735751954098,0.212879,93950.0,93941.0,0.10755346]
[1735751954499,0.212868,93955.0,93942.0,0.04920129]
[1735751954500,0.001,93947.0,93942.0,0.04920129]
[1735751954711,0.001,93947.0,93943.0,0.10753408]
[1735751955587,0.212865,93957.0,93943.0,0.10753408]
[1735751955895,0.212856,93961.0,93943.0,0.10753408]
[1735751955896,0.001,93947.0,93943.0,0.10753408]
[1735751956033,0.212873,93953.0,93943.0,0.10753408]
[1735751956923,0.01879297,93955.0,93943.0,0.10753408]
[1735751957123,0.21287,93954.0,93943.0,0.10753408]
[1735751957341,0.001,93947.0,93943.0,0.10753408]
[1735751957531,0.01879297,93946.0,93943.0,0.00354776]
[1735751957738,0.01879297,93946.0,93929.0,0.212924]
[1735751957971,0.01879297,93946.0,93943.0,0.001]
[1735751959200,0.01879297,93946.0,93930.0,0.10398632]
[1735751959399,0.01879297,93946.0,93943.0,0.001]
[1735751960051,0.29232078,93956.0,93933.0,0.212916]
[1735751960252,0.29232078,93956.0,93934.0,0.10398632]